Cogmind - Beta 15 @@@ ROGUE MODE // 2025.05.27 @ 12:48:16 Player: Epsilon 11 Result: Destroyed by X-77 Beamer with Gatling Laser Performance ------------- Evolutions (6) 3000 Regions Visited (17) 3400 Robots Destroyed (160) 800 Value Destroyed (7084) 7084 Prototype IDs (49) 980 Alien Tech Used (2) 400 Bonus (6377) 6377 TOTAL SCORE: 22041 Bonus ------- High Alert Combat Kills 1360 Follower Combat Kills 2498 Entered Garrisons 200 Registered with UFD 300 Met Optimus in HQ 500 Met Imprinter 300 Destroyed Z-Imprinter 1000 Met Zhirov 300 Friendly Fire -81 Cogmind --------- Core Integrity 0/1150 Matter 300/300 Energy 99/100 System Corruption 4% Temperature Hot (253) Movement Core (50) Location -4/Garrison Parts ------- > --- POWER (1) -------- (None) > --- PROPULSION (5) --- (None) > --- UTILITY (11) ----- (None) > --- WEAPON (2) ------- (None) > --- INVENTORY (5) ---- Advanced Coolant Injector Advanced Hacking Suite Mapping Drone Bay (2/3) Dimensional Node Initializer Peak State ------------ > --- POWER ------------ Cooled Fission Core Light Antimatter Reactor Zionite Light DM Reactor Zionite Light DM Reactor > --- PROPULSION ------- Myomer Leg Myomer Leg Advanced Myomer Leg Advanced Myomer Leg Advanced Myomer Leg > --- UTILITY ---------- Advanced Cooling System Improved Coolant Injector Large Storage Unit Particle Accelerator Improved Phase Shifter Experimental Propulsion Shielding Improved Weapon Shielding Layered Heavy Armor Plating Force Field Power Bank > --- WEAPON ----------- Cooled Plasma Rifle Zionite Phaser-S > --- INVENTORY -------- Myomer Leg Advanced Power Amplifier Energy Well Deep Structural Scanner Advanced Terrain Scanner Surveybot 17 Chip Graphene Brace Advanced Hacking Suite Mapping Drone Bay Amulet of Y3-NDR Dimensional Node Initializer Transdimensional Reconstructor Cooled Plasma Rifle Zionite Phaser-S Long-range Missile Launcher [Rating: 155] Favorites ----------- Power Zionite Light DM Reactor Engine Subdweller Power Source Power Core Cooled Fission Core Reactor Zionite Light DM Reactor Propulsion Light Treads Treads Light Treads Leg Advanced Myomer Leg Wheel Armored Wheel Hover Unit Zionite Glidesys I Utility Humpback Device Scrap Suit Storage Humpback Processor Core Analyzer Protection Medium Armor Plating Weapon Subdweller Beam Cannon Energy Gun Cooled Plasma Rifle Energy Cannon Subdweller Beam Cannon Ballistic Gun Subdweller Machine Gun Ballistic Cannon Magnetic Acceleration Cannon Launcher Long-range Missile Launcher Special Weapon Plasma Cutter Impact Weapon Powered Hammer Special Melee Weapon Datajack Build | -11 -10 -10 -8 -8 -6 -6 -6 -6 -6 -5 -5 -5 -5 -5 -4 -4 -4 ------- Run | Yrd Mat Sub Rec Scr Fac Low Low Zio Dee Pro Fac Upp Upp Zhi Pro Fac Gar Slots Evolved 12 | . . . . . 8 . . . . . 2 . . . . 2 . Power . | . . . . . . . . . . . . . . . . . . Propulsion 3 | . . . . . 3 . . . . . . . . . . . . Utility 9 | . . . . . 5 . . . . . 2 . . . . 2 . Weapon . | . . . . . . . . . . . . . . . . . . Parts Attached 171 | 6 5 16 3 4 18 7 2 7 27 2 23 3 9 9 3 8 19 Power 17 | 1 . 1 . 2 2 . . . 3 . 3 . 2 . . . 3 Engine 5 | 1 . 1 . 2 1 . . . . . . . . . . . . Core 3 | . . . . . 1 . . . . . 1 . . . . . 1 Reactor 9 | . . . . . . . . . 3 . 2 . 2 . . . 2 Propulsion 49 | 2 1 3 2 1 5 2 1 2 8 . 8 . 4 3 1 2 4 Treads 4 | . . 2 . . . . . 1 . . 1 . . . . . . Leg 22 | . . . . . . 2 . . 1 . 7 . 2 3 1 2 4 Wheel 16 | 2 1 1 2 1 5 . 1 1 . . . . 2 . . . . Hover 7 | . . . . . . . . . 7 . . . . . . . . Flight . | . . . . . . . . . . . . . . . . . . Utility 65 | 1 2 6 . . 5 4 . 2 9 2 9 2 3 5 2 5 8 Device 33 | . . 1 . . 2 3 . 1 4 2 2 1 3 3 1 4 6 Storage 8 | 1 1 1 . . . . . . 1 . 2 . . . . 1 1 Processor 4 | . . . . . 1 . . . . . 2 . . . 1 . . Hackware . | . . . . . . . . . . . . . . . . . . Protection 20 | . 1 4 . . 2 1 . 1 4 . 3 1 . 2 . . 1 Artifact . | . . . . . . . . . . . . . . . . . . Weapon 40 | 2 2 6 1 1 6 1 1 3 7 . 3 1 . 1 . 1 4 Energy Gun 12 | 2 . . . . 1 . 1 . 3 . 3 . . . . . 2 Energy Cannon 13 | . 2 4 . . 2 1 . . 2 . . 1 . . . . 1 Ballistic Gun 4 | . . 2 . . 1 . . 1 . . . . . . . . . Ballistic Cannon 2 | . . . . . . . . 1 . . . . . . . . 1 Launcher 1 | . . . . . 1 . . . . . . . . . . . . Special Weapon 5 | . . . . 1 . . . 1 2 . . . . 1 . . . Impact Weapon 1 | . . . . . 1 . . . . . . . . . . . . Slashing Weapon . | . . . . . . . . . . . . . . . . . . Piercing Weapon . | . . . . . . . . . . . . . . . . . . Special Melee Weapon 2 | . . . 1 . . . . . . . . . . . . 1 . Unidentified Prototypes 23 | . . 1 . . 1 . . 1 11 . 2 1 . 4 . 1 1 Parts Lost 86 | . . 7 . . 2 6 . . 16 1 12 . . . . 2 40 Power 9 | . . . . . . . . . 1 . 1 . . . . 1 6 Propulsion 25 | . . 2 . . 1 4 . . 5 . 5 . . . . . 8 Utility 36 | . . 2 . . 1 2 . . 6 1 6 . . . . 1 17 Weapon 16 | . . 3 . . . . . . 4 . . . . . . . 9 Highest Loss Streak 25 | . . 5 . . 2 3 . . 12 1 9 . . . . 1 25 To Critical Strikes . | . . . . . . . . . . . . . . . . . . Average Backups 19 | . 9 8 30 27 29 30 33 33 28 14 14 14 13 13 15 14 12 Power 1 | . . . 2 1 2 3 4 3 3 3 1 2 . . . . . Propulsion . | . 2 . 1 2 1 . . . . . . . . . . . . Utility 10 | . 5 5 14 13 14 15 16 17 16 8 6 6 8 8 10 8 8 Weapon 5 | . 1 1 12 10 6 6 7 8 5 1 3 4 3 3 3 3 2 Tool/Special . | . . . . . . . . . . . . . . . . . . Unused Backups 67 | . 1 5 . 22 2 . 1 4 21 1 . 2 2 2 . . 4 Power 9 | . 1 . . 4 1 . . 1 2 . . . . . . . . Propulsion 3 | . . 2 . . . . . . 1 . . . . . . . . Utility 37 | . . 2 . 8 . . . 3 15 1 . 1 1 2 . . 4 Weapon 17 | . . 1 . 10 1 . 1 . 3 . . 1 . . . . . Tool/Special 1 | . . . . . . . . . . . . . 1 . . . . Average Slot Usage (%) 86 | . 97 93 85 79 84 76 74 83 82 93 73 89 84 89 93 94 83 Engine 7 | . 14 14 14 11 2 6 6 6 1 . . . . . . . . Reactor 3 | . . . . . . . . . 4 6 4 5 12 15 15 12 6 Treads 5 | . . 22 8 . . . . 3 2 . . . . . . . . Leg 6 | . . . . . . 8 13 9 4 . 19 23 7 13 23 22 20 Wheel 11 | . 28 5 19 28 31 14 7 16 7 . . . 8 3 . . . Hover 1 | . . . . . . . . . 15 33 2 . . . . . . Device 10 | . . 5 . . 12 13 13 13 14 18 12 18 23 24 23 27 26 Storage 7 | . 14 6 14 12 6 6 6 6 7 6 8 5 5 5 5 4 9 Processor 2 | . . . . . 5 6 6 6 1 . 4 11 6 5 4 . . Protection 6 | . 12 10 . . 5 5 6 6 8 15 5 11 5 6 6 12 6 Energy Gun 4 | . 1 . . . 5 5 7 8 3 8 10 11 10 8 10 8 7 Energy Cannon 7 | . 25 14 14 10 4 6 4 . 2 . . . . . . . . Ballistic Gun 3 | . . 12 . . . . . . 2 . . . . . . . . Special Melee Weapon 2 | . . . 13 14 . . . . . . . . . . . . . Peak Build Rating 155 | 6 12 17 18 24 56 60 63 70 99 100 104 95 129 133 145 155 154 Average Rating 54 | 4 10 12 17 17 53 58 61 63 78 96 70 93 118 127 140 150 126 On Entrance 68 | . 6 12 17 18 24 54 60 63 65 97 94 85 95 127 132 145 146 Naked Turns 3 | . . . . . . . . . . . . . . . . . 3 Heaviest Build 244 | 13 40 217 217 218 234 236 232 236 244 68 67 73 96 111 114 117 124 Greatest Support 138 | 20 26 40 32 32 56 52 18 28 72 72 83 83 83 113 138 138 135 Greatest Overweight (x) 29 | . 1 10 10 17 7 29 28 12 12 . 2 . 2 4 . 1 5 Average Overweight (x) 3 | . . 1 8 5 4 16 23 10 3 . . . 1 1 . . . Largest Inventory Capacity 35 | 8 15 35 35 35 35 35 35 35 35 15 15 15 15 15 15 15 15 Average Capacity 22 | 7 11 15 35 31 35 35 35 35 31 15 15 15 15 15 15 15 14 Most Carried 35 | 3 13 29 35 35 34 33 35 35 35 15 15 15 15 15 15 15 15 Average Carried 20 | . 9 8 32 29 29 31 34 34 28 14 14 14 14 14 14 14 12 Final Capacity 35 | 8 15 35 35 35 35 35 35 35 15 15 15 15 15 15 15 15 5 Final Carried 35 | 3 13 29 35 35 29 33 35 35 15 14 15 15 15 15 15 15 4 Class Distribution -------------------- 28% | Mutant 28% | Hauler-Mutant 20% | Commander-Mutant 8% | Generator-Mutant 6% | Scavenger-Mutant 4% | Scavenger-Scrapper Dominant Class ---------------- Mutant | -10/Materials Mutant | -10/Subcaves Commander-Mutant | -8/Recycling Commander-Mutant | -8/Scraptown Hauler-Mutant | -6/Factory Hauler-Mutant | -6/Lower Caves Hauler-Mutant | -6/Lower Caves Hauler-Mutant | -6/Zion Hauler-Mutant | -6/Deep Caves Scavenger-Mutant | -5/Proximity Caves Mutant | -5/Factory Mutant | -5/Upper Caves Scavenger-Scrapper | -5/Upper Caves Mutant | -5/Zhirov Generator-Mutant | -4/Proximity Caves Generator-Mutant | -4/Factory Generator-Mutant | -4/Garrison Resources | -11 -10 -10 -8 -8 -6 -6 -6 -6 -6 -5 -5 -5 -5 -5 -4 -4 -4 ----------- Run | Yrd Mat Sub Rec Scr Fac Low Low Zio Dee Pro Fac Upp Upp Zhi Pro Fac Gar Matter Collected 3613 | 201 159 297 28 30 221 130 30 76 553 384 308 103 207 129 164 157 436 Remotely 10 | . . . . . . . . . . . 10 . . . . . . Salvage Created 7113 | . 534 517 37 . 717 419 64 . 369 166 1357 . 173 129 177 1370 1084 Parts 345 | . 29 31 2 . 33 11 3 . 27 16 57 . 12 12 7 55 50 Haulers Intercepted 1 | . 1 . . . . . . . . . . . . . . . . Recyclers Shooed 3 | . . . . . 1 . . . . . . . . . . 2 . Parts Field Recycled . | . . . . . . . . . . . . . . . . . . Retrieved Matter . | . . . . . . . . . . . . . . . . . . Parts Self-Destructed 85 | . . 17 . . . 5 . 4 . 12 . 9 26 9 3 . . Prevented 40 | . . 1 . . . . . . . 5 . 1 21 . 12 . . Kills | -11 -10 -10 -8 -8 -6 -6 -6 -6 -6 -5 -5 -5 -5 -5 -4 -4 -4 ------- Run | Yrd Mat Sub Rec Scr Fac Low Low Zio Dee Pro Fac Upp Upp Zhi Pro Fac Gar Combat Hostiles Destroyed 146 | . 10 12 1 . 14 7 . . 11 12 25 . 7 . 2 15 30 Guns 54 | . . 1 . . 4 1 . . 4 1 18 . 1 . 1 14 9 Cannons 30 | . 8 5 1 . 4 2 . . 4 . . . . . . . 6 AOE 51 | . 2 4 . . 5 . . . 3 11 5 . 6 . . . 15 Classes Destroyed 21 | . 5 2 . . 3 1 . . 2 1 4 . . . 1 . 2 Worker 2 | . . . . . 1 . . . . . 1 . . . . . . Builder 3 | . . . . . . . . . . . 2 . . . . 1 . Hauler 1 | . 1 . . . . . . . . . . . . . . . . Recycler 6 | . 2 . . . 2 . . . . . . . . . . 2 . Operator 1 | . . . . . . . . . . . 1 . . . . . . Drone 1 | . . . . . . . . . . 1 . . . . . . . Watcher 3 | . 2 . . . . . . . . . 1 . . . . . . Swarmer 44 | . 5 3 . . 7 . . . . 10 6 . 7 . . . 6 Cutter 4 | . . . . . . . . . . . . . . . . . 4 Saboteur 2 | . . . . . . . . . . . . . . . . . 2 Grunt 49 | . 5 . 1 . 1 4 . . . 1 14 . . . . 8 15 Brawler 1 | . . . . . . . . . . . 1 . . . . . . Protector 1 | . . . . . . . . . . . 1 . . . . . . Sentry 9 | . . . . . 4 1 . . . . . . . . . 2 2 Hunter 4 | . . . . . . 2 . . . . . . . . . 2 . Programmer 9 | . . . . . 2 . . . . . 3 . . . 1 3 . Behemoth 2 | . . . . . . . . . . . . . . . 1 . 1 Subdweller 9 | . . 9 . . . . . . . . . . . . . . . Zionite 1 | . . 1 . . . . . . . . . . . . . . . Z-Light 7 | . . . . . . . . . 7 . . . . . . . . Decomposer 3 | . . . . . . . 3 . . . . . . . . . . Assembled 3 | . . . . . . . . . 3 . . . . . . . . Best Kill Streak 18 | . 3 4 1 . 13 4 . . 3 5 6 . 6 . 1 5 18 Combat Bots Only 18 | . 3 4 1 . 12 4 . . 3 5 5 . 6 . 1 4 18 Max Kills in Single Turn 4 | . 2 3 1 . 3 1 1 . 2 4 3 . 4 . 1 2 4 Gunslinging 1 | . . . . . . . . . . . . . . . . 1 . Exploded 4 | . 1 3 . . 3 . . . 2 4 3 . 4 . . . 4 Melee . | . . . . . . . . . . . . . . . . . . Uniques/NPCs Destroyed 1 | . . . . . . . . . 1 . . . . . . . . Z-Imprinter (-6/Deep Caves) Combat | -11 -10 -10 -8 -8 -6 -6 -6 -6 -6 -5 -5 -5 -5 -5 -4 -4 -4 -------- Run | Yrd Mat Sub Rec Scr Fac Low Low Zio Dee Pro Fac Upp Upp Zhi Pro Fac Gar Hostile Shots Fired 1239 | . 23 55 17 . 124 81 . . 129 37 149 . 12 . 12 134 466 Missed 413 | . 7 18 4 . 53 25 . . 40 15 48 . 7 . 7 49 140 Hits 826 | . 16 37 13 . 71 56 . . 89 22 101 . 5 . 5 85 326 Melee 1 | . . . . . . . . . . . . . . . . . 1 Projectile 825 | . 16 37 13 . 71 56 . . 89 22 101 . 5 . 5 85 325 AOE 2 | . . . . . 2 . . . . . . . . . . . . Critical Strikes 32 | . . 1 1 . 1 . . . 1 . 9 . . . . 5 14 Actively Blocked 18 | . . . . . . . . . . . 1 . . . . 3 14 Damage Taken 14383 | . 244 859 202 . 960 792 . . 2877 586 1776 . 107 . 114 875 4991 Core 2098 | . 11 153 84 . 127 45 . . 288 135 152 . . . . 63 1040 Absorbed by Shields 1789 | . . . . . . 43 . . 39 56 299 . 102 . 50 817 383 Redirected to Shielding 557 | . . . . . . . . . 141 32 170 . 11 . . 175 28 Ignored by Resistances 16 | . . . . . 12 4 . . . . . . . . . . . Regen/Repaired (Parts) 1303 | . 103 . . . 45 . . 1113 . . 27 . 15 . . . . Core Remaining (%) 53 | 100 . . . . . . . . . 30 . . . . 84 . . Volleys Fired 530 | . 23 117 4 . 35 55 3 2 50 18 77 . 13 11 8 48 66 Largest 2 | . 2 2 2 . 2 2 2 1 2 2 2 . 2 1 2 2 2 Hottest 170 | . 112 136 110 . 160 145 135 80 170 120 144 . 84 24 144 132 168 Shots Fired 806 | . 46 133 8 . 56 78 6 2 82 24 134 . 19 11 13 93 101 Gun 506 | . 2 46 4 . 37 23 6 1 32 19 132 . 17 10 13 93 71 Cannon 269 | . 44 87 4 . 16 55 . . 44 . . . . . . . 19 Launcher 27 | . . . . . 3 . . . 4 5 2 . 2 . . . 11 Special 4 | . . . . . . . . 1 2 . . . . 1 . . . Kinetic 127 | . . 46 4 . 15 . . . 56 . . . . . . . 6 Thermal 397 | . 2 49 4 . 37 78 3 1 20 . 80 . 6 10 12 45 50 Explosive 27 | . . . . . 3 . . . 4 5 2 . 2 . . . 11 Electromagnetic 86 | . 44 38 . . 1 . 3 . . . . . . . . . . Phasic 165 | . . . . . . . . . . 19 52 . 11 . 1 48 34 Robot Hit Streak 23 | . 12 14 7 . 11 11 7 8 6 4 13 . 4 8 3 23 9 Robot Miss Streak 5 | . 2 1 1 . 2 1 . . 5 2 3 . 2 1 2 3 4 Penetration Max . | . . . . . . . . . . . . . . . . . . Secondary Targets 8 | . . . . . . . . . . 1 . . 1 . . 2 4 Max Gunslinging Chain 1 | . . . . . . . . . . 1 . . 1 . . 1 1 Shots Hit Robots 446 | . 31 41 22 1 40 36 3 1 38 10 79 . 10 10 6 62 56 Core Hits 259 | . 17 17 2 . 24 12 3 . 25 13 43 . 11 1 2 25 64 Critical Kills 1 | . . . . . 1 . . . . . . . . . . . . Critical Parts Destroyed 1 | . . . . . 1 . . . . . . . . . . . . Critical Strikes 32 | . 1 . . . 4 3 . . 2 . 6 . . 1 1 5 9 Burn 22 | . . . . . 2 3 . . 1 . 4 . . 1 1 4 6 Meltdown 1 | . . . . . 1 . . . . . . . . . . . . Blast 1 | . . . . . . . . . 1 . . . . . . . . Corrupt 1 | . 1 . . . . . . . . . . . . . . . . Smash 1 | . . . . . 1 . . . . . . . . . . . . Intensify 6 | . . . . . . . . . . . 2 . . . . 1 3 Melee Attacks 27 | . . . 17 1 8 . . . . . . . . . . 1 . Impact 8 | . . . . . 8 . . . . . . . . . . . . Slashing . | . . . . . . . . . . . . . . . . . . Piercing . | . . . . . . . . . . . . . . . . . . Sneak Attacks 20 | . . . 16 1 2 . . . . . . . . . . 1 . Combat Hostiles . | . . . . . . . . . . . . . . . . . . Follow-up Attacks . | . . . . . . . . . . . . . . . . . . Damage Inflicted 19465 | . 903 984 179 . 1644 897 62 . 1309 1196 3215 . 657 301 270 2978 4870 Guns 9474 | . 13 116 72 . 551 439 62 . 344 231 2461 . 262 301 270 2978 1374 Cannons 3612 | . 734 677 107 . 288 458 . . 704 . . . . . . . 644 Explosions 6179 | . 156 191 . . 618 . . . 261 965 741 . 395 . . . 2852 Melee 187 | . . . . . 187 . . . . . . . . . . . . Ramming 13 | . . . . . . . . . . . 13 . . . . . . Kinetic 1336 | . . 116 72 . 188 . . . 755 . . . . . . . 205 Thermal 7769 | . 169 242 107 . 651 897 22 . 293 . 1774 . 97 301 270 1802 1144 Explosive 5364 | . . . . . 618 . . . 261 965 273 . 395 . . . 2852 Electromagnetic 1400 | . 734 626 . . . . 40 . . . . . . . . . . Impact 187 | . . . . . 187 . . . . . . . . . . . . Slashing . | . . . . . . . . . . . . . . . . . . Piercing . | . . . . . . . . . . . . . . . . . . Phasic 3396 | . . . . . . . . . . 231 1155 . 165 . . 1176 669 Highest Corruption 6 | . . . . . . . . . . 2 3 . . . 6 4 4 Average Corruption 3 | . . . . . . . . . . 2 2 . . . 6 3 4 Corruption Purged . | . . . . . . . . . . . . . . . . . . Corruption Blocked 12 | . . . . . . . . . . . . . . . 12 . . Effects 44 | . . . . . . . . . . 1 18 . . . 2 7 16 Message Errors 5 | . . . . . . . . . . 1 1 . . . 1 1 1 Matter Fused 8 | . . . . . . . . . . . 3 . . . 1 1 3 Heat Flow Errors 7 | . . . . . . . . . . . 1 . . . . 2 4 Energy Discharges 3 | . . . . . . . . . . . 3 . . . . . . Parts Rejected 2 | . . . . . . . . . . . . . . . . 1 1 Data Loss (minor) 11 | . . . . . . . . . . . 4 . . . . 2 5 Data Loss (major) 4 | . . . . . . . . . . . 3 . . . . . 1 Misfires 1 | . . . . . . . . . . . 1 . . . . . . Alerts 1 | . . . . . . . . . . . 1 . . . . . . Weapon Failures 2 | . . . . . . . . . . . 1 . . . . . 1 Overload Shots 52 | . . . . . . . . . . . 17 . . . 6 22 7 Effects 2 | . . . . . . . . . . . . . . . . 2 . Energy Bleed 1 | . . . . . . . . . . . . . . . . 1 . Short Circuit 1 | . . . . . . . . . . . . . . . . 1 . Overflow Damage 505 | . 18 19 2 . 220 . . . 12 26 80 . 49 . . . 79 Projectiles 32 | . 18 . 2 . . . . . 12 . . . . . . . . Explosions 316 | . . 19 . . 63 . . . . 26 80 . 49 . . . 79 Melee 157 | . . . . . 157 . . . . . . . . . . . . Knockbacks 5 | . . . . . 1 . . . 4 . . . . . . . . Impact 1 | . . . . . 1 . . . . . . . . . . . . Kinetic 4 | . . . . . . . . . 4 . . . . . . . . Secondary . | . . . . . . . . . . . . . . . . . . Self-Inflicted Damage 344 | . 89 22 . . 40 . . . . . 130 . . . . . 63 Shots 9 | . 2 1 . . 1 . . . . . 3 . . . . . 2 Rammed . | . . . . . . . . . . . . . . . . . . Targets Rammed 5 | . . . . . . . . . . . 5 . . . . . . Kicked 5 | . . . . . . . . . . . 5 . . . . . . Crushed . | . . . . . . . . . . . . . . . . . . Highest Temperature 560 | . 252 15 204 . 266 560 78 52 557 276 478 . 195 . 120 202 370 Average Temperature 105 | . 89 8 106 . 107 124 47 38 170 76 132 . 78 . 43 85 89 Received Heat Transfer 3299 | . 42 96 99 . 177 168 . . 769 12 608 . 38 . . 90 1200 Effects 20 | . . . . . . 9 . . 7 . 4 . . . . . . Shutdowns 1 | . . . . . . 1 . . . . . . . . . . . Energy Bleed 1 | . . . . . . . . . 1 . . . . . . . . Interference 10 | . . . . . . 4 . . 3 . 3 . . . . . . Short Circuit 2 | . . . . . . . . . 1 . 1 . . . . . . Damage (minor) 2 | . . . . . . . . . 2 . . . . . . . . Damage (major) 4 | . . . . . . 4 . . . . . . . . . . . Siege Activations . | . . . . . . . . . . . . . . . . . . Martial Activations . | . . . . . . . . . . . . . . . . . . Shielding Activations . | . . . . . . . . . . . . . . . . . . Robots Disrupted . | . . . . . . . . . . . . . . . . . . Combat Hostiles . | . . . . . . . . . . . . . . . . . . Robots Corrupted 4 | . . 2 . . 2 . . . . . . . . . . . . Combat Hostiles 2 | . . 2 . . . . . . . . . . . . . . . Parts Fried 17 | . 2 7 . . 3 . . . . 1 4 . . . . . . Impact Corruptions 2 | . . . . . 2 . . . . . . . . . . . . Robots Melted 9 | . . . . . 1 4 . . . . 2 . . . 1 1 . Combat Hostiles 9 | . . . . . 1 4 . . . . 2 . . . 1 1 . Parts Melted 44 | . . 2 1 . 8 3 . . 3 . 7 . . . 4 14 2 Heat Transferred 14179 | . 187 274 148 . 1420 1892 50 . 624 . 3124 . 200 600 630 2830 2200 Parts Sabotaged 2 | . . . . . . . . . . . . . . . . . 2 Parts Stolen . | . . . . . . . . . . . . . . . . . . Parts Stripped . | . . . . . . . . . . . . . . . . . . Power Chain Reactions 5 | . 3 2 . . . . . . . . . . . . . . . Alert | -11 -10 -10 -8 -8 -6 -6 -6 -6 -6 -5 -5 -5 -5 -5 -4 -4 -4 ------- Run | Yrd Mat Sub Rec Scr Fac Low Low Zio Dee Pro Fac Upp Upp Zhi Pro Fac Gar Maximum Alert Level 5 | . . . . . 1 . . . . . 5 . . . . 1 3 Low Security (%) 57 | 100 100 . 100 . 60 . . . . . . . . . . 68 7 Level 1 13 | . . . . . 39 . . . . . . . . . . 31 31 Level 2 1 | . . . . . . . . . . . . . . . . . 16 Level 3 13 | . . . . . . . . . . . 38 . . . . . 44 Level 4 9 | . . . . . . . . . . . 42 . . . . . . Level 5 4 | . . . . . . . . . . . 18 . . . . . . High Security . | . . . . . . . . . . . . . . . . . . Max Security . | . . . . . . . . . . . . . . . . . . Peak Influence 2182 | . 173 . 170 . 359 . . . . . 2182 . . . . 332 884 Initial 1002 | . . . 9 . . . . . . . 1002 . . . . . 197 Average 407 | . 68 . 52 . 168 . . . . . 1247 . . . . 118 549 Influence Increases 8092 | . 404 195 450 . 799 160 . . . 562 2680 65 1002 7 159 552 1057 Destroy 0b10 Robot/C 3740 | . 200 120 120 . 340 140 . . . 360 780 40 620 . 80 300 640 Destroy 0b10 Robot/NC 140 | . 25 . . . 20 . . . . 5 65 . 5 5 . 15 . Destroy Leader 450 | . 36 10 . . 70 20 . . . 40 114 . 40 . 30 60 30 Allied During Kill 940 | . . 20 74 . 106 . . . . 82 163 25 337 2 49 . 82 Successful Hack 239 | . 46 . 10 . 58 . . . . . 45 . . . . 66 14 Select Force Hacks 270 | . 30 . 240 . . . . . . . . . . . . . . Disable Machine 720 | . 45 . . . 135 . . . . . 450 . . . . 60 30 Destroy Structure 513 | . 7 . 6 . 55 . . . . . 238 . . . . 36 171 Advance Influence 750 | . . . . . . . . . . . 750 . . . . . . Partial Spotted 15 | . . . . . 15 . . . . . . . . . . . . Lose Combat Pursuer 315 | . 15 45 . . . . . . . 75 75 . . . . 15 90 Influence Decreases 7298 | . 378 202 353 116 547 412 . . . 160 914 1121 846 1275 159 270 545 Entered New Map 2752 | . . 14 10 116 . 94 . . . . 150 803 212 1268 . . 85 Time Decay 3268 | . 378 148 323 . 299 270 . . . 130 494 318 514 7 139 248 . Search Patrol Dispatched 150 | . . . . . . . . . . . 150 . . . . . . Lost Part 618 | . . . . . 20 48 . . . 10 120 . . . . 20 400 Lost Ally 510 | . . 40 20 . 228 . . . . 20 . . 120 . 20 2 60 Squads Dispatched 26 | . 3 . . . 7 . . . . . 14 . . . . 2 . Investigation 8 | . 1 . . . 3 . . . . . 4 . . . . . . Extermination 5 | . . . . . 2 . . . . . 2 . . . . 1 . Reinforcement 6 | . 2 . . . 2 . . . . . 1 . . . . 1 . Assault 4 | . . . . . . . . . . . 4 . . . . . . Garrison 3 | . . . . . . . . . . . 3 . . . . . . Intercept . | . . . . . . . . . . . . . . . . . . Searches Triggered 1 | . . . . . . . . . . . 1 . . . . . . Construction Impeded 1 | . . . . . . . . . . . 1 . . . . . . Haulers Reinforced . | . . . . . . . . . . . . . . . . . . Active Scanning Responses . | . . . . . . . . . . . . . . . . . . Cargo Convoy Interrupts 1 | . . . . . 1 . . . . . . . . . . . . Stealth | -11 -10 -10 -8 -8 -6 -6 -6 -6 -6 -5 -5 -5 -5 -5 -4 -4 -4 --------- Run | Yrd Mat Sub Rec Scr Fac Low Low Zio Dee Pro Fac Upp Upp Zhi Pro Fac Gar Distress Signals 7 | . 1 . . . 1 . . . . . 1 . . . . 4 . Communications Jammed . | . . . . . . . . . . . . . . . . . . Distress Signals . | . . . . . . . . . . . . . . . . . . Times Spotted 272 | . 19 25 4 . 28 7 . . 15 17 53 . 26 . 5 26 47 Peak Tracking Total 14 | . 4 4 2 . 7 4 . . 5 7 6 . 13 . 2 5 14 Tactical Retreats 13 | . 1 2 . . . . . . . 1 3 . . . . 1 5 Traps | -11 -10 -10 -8 -8 -6 -6 -6 -6 -6 -5 -5 -5 -5 -5 -4 -4 -4 ------- Run | Yrd Mat Sub Rec Scr Fac Low Low Zio Dee Pro Fac Upp Upp Zhi Pro Fac Gar Traps Triggered 9 | . 3 1 . . 3 . . . . . . . . . . . 2 Indirectly . | . . . . . . . . . . . . . . . . . . Trap Hack Attempts . | . . . . . . . . . . . . . . . . . . Triggered . | . . . . . . . . . . . . . . . . . . Disarmed . | . . . . . . . . . . . . . . . . . . Reprogrammed . | . . . . . . . . . . . . . . . . . . Reused . | . . . . . . . . . . . . . . . . . . Traps Extracted . | . . . . . . . . . . . . . . . . . . Installed . | . . . . . . . . . . . . . . . . . . Triggered . | . . . . . . . . . . . . . . . . . . Most Traps Carried 1 | . . 1 1 1 . . . . . . . . . . . . . Machines | -11 -10 -10 -8 -8 -6 -6 -6 -6 -6 -5 -5 -5 -5 -5 -4 -4 -4 ---------- Run | Yrd Mat Sub Rec Scr Fac Low Low Zio Dee Pro Fac Upp Upp Zhi Pro Fac Gar Machines Disabled 62 | . 3 3 . . 9 . . 3 2 . 30 . 5 . 1 4 2 Max in Single Turn 6 | . 1 1 . . 2 . . 1 . . 6 . 1 . 1 1 1 Garrison Access 1 | . . . . . . . . . . . . . . . . 1 . Machines Repaired . | . . . . . . . . . . . . . . . . . . Machines Dismantled 3 | . . . . . . . . 3 . . . . . . . . . Machines Sabotaged . | . . . . . . . . . . . . . . . . . . Overloaded Fab Kills . | . . . . . . . . . . . . . . . . . . Hacking | -11 -10 -10 -8 -8 -6 -6 -6 -6 -6 -5 -5 -5 -5 -5 -4 -4 -4 --------- Run | Yrd Mat Sub Rec Scr Fac Low Low Zio Dee Pro Fac Upp Upp Zhi Pro Fac Gar Machines Accessed 73 | . 6 2 14 2 11 . . 1 . . 16 3 1 5 2 9 1 Terminals 31 | . 4 . 6 . 6 . . . . . 10 . . . 1 3 1 Fabricators 2 | . . . . . . . . . . . 2 . . . . . . Repair Stations 4 | . 1 . . . 1 . . . . . 1 . . . . 1 . Recycling Units 16 | . 1 . 8 . 3 . . . . . 3 . . . . 1 . Scanalyzers 3 | . . . . . 1 . . . . . . . . . . 2 . Garrison Access 2 | . . . . . . . . . . . . . . . . 2 . Total Hacks 196 | . 16 5 48 5 24 . . 4 . . 43 5 7 18 2 17 2 Successful 120 | . 12 5 27 5 9 . . 4 . . 18 5 7 18 2 7 1 Failed 76 | . 4 . 21 . 15 . . . . . 25 . . . . 10 1 Catastrophic 18 | . 1 . 4 . 4 . . . . . 4 . . . . 5 . Database Lockouts . | . . . . . . . . . . . . . . . . . . Manual 106 | . 10 . 33 . 19 . . 1 . . 34 . . . . 9 . Terminals 89 | . 9 . 29 . 13 . . . . . 28 . . . 1 7 2 Fabricators 3 | . . . . . . . . . . . 3 . . . . . . Repair Stations 11 | . 5 . . . 2 . . . . . 3 . . . . 1 . Recycling Units 38 | . 2 . 19 . 6 . . . . . 9 . . . . 2 . Scanalyzers 7 | . . . . . 3 . . . . . . . . . . 4 . Garrison Access 3 | . . . . . . . . . . . . . . . . 3 . Terminal Hacks 51 | . . 5 3 5 1 . . 4 . . . 5 7 18 2 . 1 Record 27 | . . 4 . 5 . . . . . . . 3 7 6 2 . . Part Schematic 10 | . . . 1 . 1 . . 4 . . . . . 4 . . . Robot Analysis 5 | . . . 1 . . . . . . . . . . 4 . . . Prototype ID Bank 4 | . . . . . . . . . . . . . . 4 . . . Open Door 2 | . . . . . . . . . . . . 2 . . . . . Emergency Access Points 1 | . . . . . . . . . . . . . . . . . 1 Terminal Index 1 | . . . 1 . . . . . . . . . . . . . . Proto ID Catalog 1 | . . 1 . . . . . . . . . . . . . . . Fabricator Hacks 1 | . . . . . . . . . . . 1 . . . . . . Network Status 1 | . . . . . . . . . . . 1 . . . . . . Repair Station Hacks 4 | . 4 . . . . . . . . . . . . . . . . Scan Component 2 | . 2 . . . . . . . . . . . . . . . . Repair 2 | . 2 . . . . . . . . . . . . . . . . Recycling Unit Hacks 15 | . 1 . 9 . 2 . . . . . 3 . . . . . . Report Inventory 13 | . 1 . 8 . 1 . . . . . 3 . . . . . . Retrieve Matter 1 | . . . . . 1 . . . . . . . . . . . . Retrieve Components 1 | . . . 1 . . . . . . . . . . . . . . Scanalyzer 1 | . . . . . . . . . . . . . . . . 1 . Insert Component 1 | . . . . . . . . . . . . . . . . 1 . Garrison Access Hacks 2 | . . . . . . . . . . . . . . . . 2 . Unlock Access 1 | . . . . . . . . . . . . . . . . 1 . Seal Access 1 | . . . . . . . . . . . . . . . . 1 . Unauthorized Hacks 46 | . 7 . 15 . 6 . . . . . 14 . . . . 4 . Terminals 28 | . 6 . 7 . 3 . . . . . 8 . . . . 4 . Botnet 8 | . 2 . 2 . 1 . . . . . 2 . . . . 1 . Operators 1 | . . . . . . . . . . . 1 . . . . . . Skim 19 | . 4 . 5 . 2 . . . . . 5 . . . . 3 . Fabricators 2 | . . . . . . . . . . . 2 . . . . . . Report 1 | . . . . . . . . . . . 1 . . . . . . Fabnet 1 | . . . . . . . . . . . 1 . . . . . . Repair Stations 2 | . . . . . 1 . . . . . 1 . . . . . . Mechanics 1 | . . . . . 1 . . . . . . . . . . . . Patch 1 | . . . . . . . . . . . 1 . . . . . . Recycling Units 14 | . 1 . 8 . 2 . . . . . 3 . . . . . . Tunnel 9 | . 1 . 8 . . . . . . . . . . . . . . Fedlink 4 | . . . . . 2 . . . . . 2 . . . . . . Scrapoids 1 | . . . . . . . . . . . 1 . . . . . . Scanalyzers . | . . . . . . . . . . . . . . . . . . Garrison Access . | . . . . . . . . . . . . . . . . . . Data Cores Recovered . | . . . . . . . . . . . . . . . . . . Used . | . . . . . . . . . . . . . . . . . . Hacking Detections 46 | . 5 . 10 . 9 . . . . . 14 . . . . 7 1 Full Trace Events 1 | . . . . . 1 . . . . . . . . . . . . Feedback Events . | . . . . . . . . . . . . . . . . . . Feedback Blocked . | . . . . . . . . . . . . . . . . . . Robot Schematics Acquired 4 | . . . . . . . . 4 . . . . . . . . . Robots Built . | . . . . . . . . . . . . . . . . . . Authchips . | . . . . . . . . . . . . . . . . . . Time . | . . . . . . . . . . . . . . . . . . Total Robot Build Rating . | . . . . . . . . . . . . . . . . . . Part Schematics Acquired 24 | . . . 1 . 1 . . 18 . . . . . 4 . . . Parts Built . | . . . . . . . . . . . . . . . . . . Authchips . | . . . . . . . . . . . . . . . . . . Time . | . . . . . . . . . . . . . . . . . . Total Part Build Rating . | . . . . . . . . . . . . . . . . . . Parts Repaired 2 | . 2 . . . . . . . . . . . . . . . . Time 64 | . 64 . . . . . . . . . . . . . . . . Parts Recycled . | . . . . . . . . . . . . . . . . . . Recycled Matter . | . . . . . . . . . . . . . . . . . . Retrieved Matter 245 | . . . . . 245 . . . . . . . . . . . . Retrieved Components 2 | . . . 2 . . . . . . . . . . . . . . Parts Scanalyzed 1 | . . . . . . . . . . . . . . . . 1 . Part Schematics Acquired . | . . . . . . . . . . . . . . . . . . Parts Damaged . | . . . . . . . . . . . . . . . . . . Bothacking | -11 -10 -10 -8 -8 -6 -6 -6 -6 -6 -5 -5 -5 -5 -5 -4 -4 -4 ------------ Run | Yrd Mat Sub Rec Scr Fac Low Low Zio Dee Pro Fac Upp Upp Zhi Pro Fac Gar Used RIF Installer . | . . . . . . . . . . . . . . . . . . Robots Hacked 4 | . . . . 1 . . . 1 . . . . . . . 1 1 Non-combat . | . . . . . . . . . . . . . . . . . . Combat 4 | . . . . 1 . . . 1 . . . . . . . 1 1 Robot Hacks Applied 2 | . . . . 1 . . . 1 . . . . . . . . . parse_system 2 | . . . . 1 . . . 1 . . . . . . . . . Relay Couplers Released . | . . . . . . . . . . . . . . . . . . Fabnet Peak Effective % 3 | . . . . . . . . . . . . . . . 3 3 3 Autooverrided 2 | . . . . . . . . . . . . . . . . 1 1 Robots Rewired 13 | . . . 9 . . . . . . . . . . . . 1 3 Allies Hacked 1 | . . . . . . . . . . . 1 . . . . . . Hacks Repelled . | . . . . . . . . . . . . . . . . . . Allies | -11 -10 -10 -8 -8 -6 -6 -6 -6 -6 -5 -5 -5 -5 -5 -4 -4 -4 -------- Run | Yrd Mat Sub Rec Scr Fac Low Low Zio Dee Pro Fac Upp Upp Zhi Pro Fac Gar Total Allies 50 | . . 8 9 . . . . 2 . 6 5 4 6 . 2 4 4 Largest Group 14 | . . 7 14 13 13 . . 2 2 3 5 7 7 4 4 4 4 Highest-Rated Group 471 | . . 133 252 232 232 . . 192 192 243 241 471 471 302 302 296 257 Highest-Rated Ally 116 | . . 19 34 34 34 . . 96 96 81 53 81 81 81 81 116 116 Total Orders 80 | . . . 2 6 2 13 4 3 . . . 12 19 1 12 6 . STAY 4 | . . . 1 3 . . . . . . . . . . . . . ROAM 4 | . . . . . . . . 1 . . . . 1 . 1 1 . FOLLOW 4 | . . . . 3 . . . . . . . 1 . . . . . GUARD 3 | . . . 1 . 2 . . . . . . . . . . . . EXPLORE 24 | . . . . . . 5 2 1 . . . 5 6 . 4 1 . RETURN 41 | . . . . . . 8 2 1 . . . 6 12 1 7 4 . Ally Attacks 381 | . . 30 34 . 41 . . . 30 17 93 5 74 . 35 3 19 Total Damage 15960 | . . 425 474 . 1065 . . . 3884 1312 2952 265 4570 . 456 61 496 Kills 89 | . . 4 5 . 5 . . . 8 8 22 2 31 . 2 . 2 Allies Corrupted . | . . . . . . . . . . . . . . . . . . Allies Melted 2 | . . . . . . . . . . . . . 1 . 1 . . Intel | -11 -10 -10 -8 -8 -6 -6 -6 -6 -6 -5 -5 -5 -5 -5 -4 -4 -4 ------- Run | Yrd Mat Sub Rec Scr Fac Low Low Zio Dee Pro Fac Upp Upp Zhi Pro Fac Gar Active Infowar (turns) 2143 | . . . . . . . . . . 279 1209 166 . . . 487 2 Structural 2143 | . . . . . . . . . . 279 1209 166 . . . 487 2 Robot Analysis Total 5 | . . . 1 . . . . . . . . . . 4 . . . Derelict Logs Recovered 17 | . . 2 . 5 . . 1 2 . 1 . 2 1 . 3 . . Drone Launches 61 | . . . . . . 10 5 . . . . 10 20 . 12 4 . Drone Recoveries 60 | . . . . . . 10 2 3 . . . 10 17 3 11 4 . Exploration | -11 -10 -10 -8 -8 -6 -6 -6 -6 -6 -5 -5 -5 -5 -5 -4 -4 -4 ------------- Run | Yrd Mat Sub Rec Scr Fac Low Low Zio Dee Pro Fac Upp Upp Zhi Pro Fac Gar Turns Passed 24587 | 49 1049 5731 1018 3976 790 1057 987 1844 1246 336 1309 706 1401 238 1375 886 589 Spaces Moved 13815 | 47 676 2970 488 2431 445 324 256 806 759 538 866 393 993 167 848 524 284 Core 933 | 2 . 21 . 898 . . . . . . . . . . . . 12 Treads 2012 | . . 2012 . . . . . . . . . . . . . . . Legs 2933 | . . . . . . . . . 4 . 739 393 73 80 848 524 272 Wheels 6736 | 45 676 937 488 1533 445 324 256 806 219 . . . 920 87 . . . Hover 1201 | . . . . . . . . . 536 538 127 . . . . . . Flight . | . . . . . . . . . . . . . . . . . . Fastest Speed 44 | 50 80 90 172 50 134 138 219 180 44 44 44 125 80 90 120 120 50 Average Speed 147 | 78 97 179 193 155 136 250 316 200 126 44 114 125 91 104 120 121 122 Slowest Speed 960 | 80 105 560 210 345 174 360 350 219 960 44 250 125 125 120 120 185 300 Overloaded Moves . | . . . . . . . . . . . . . . . . . . Propulsion Burnouts . | . . . . . . . . . . . . . . . . . . Robots Hopped . | . . . . . . . . . . . . . . . . . . Potential Cave-ins . | . . . . . . . . . . . . . . . . . . Cave-ins Triggered 1 | . . . . . . . . . . 1 . . . . . . . Teleports 1 | . . . . . . . . . . . . . . . . . 1 Exploration Rate (%) 67 | 4 95 94 98 85 18 69 86 87 69 72 25 98 98 60 98 19 43 Regions Visited 17 Branch Regions 12 Pre-discovered Areas 21 | . 1 2 9 1 1 . . 1 . . . . 1 3 2 . . Known Exits Taken 6 | . . 1 . . 1 . . . . 1 1 . . . 1 1 . Unknown Exits Taken 11 | 1 1 . 1 1 . 1 1 1 1 . . 1 1 1 . . . Scrap Searched 38 | . . 11 . 10 . 1 2 2 . 1 . 4 3 . 4 . . Spaces Dug 71 | . . 26 . . 4 12 . . . 6 15 . 2 . 2 3 1 Terrain Destroyed 442 | . 5 30 . . 22 15 . . 38 97 100 . 19 . 2 17 97 Melee 4 | . . . . . 4 . . . . . . . . . . . . Projectile 134 | . . 28 . . 3 15 . . 16 12 23 . 5 . 2 17 13 AOE 304 | . 5 2 . . 15 . . . 22 85 77 . 14 . . . 84 Terrain Rammed . | . . . . . . . . . . . . . . . . . . Walls Destroyed . | . . . . . . . . . . . . . . . . . . Machines Disabled . | . . . . . . . . . . . . . . . . . . Actions | -11 -10 -10 -8 -8 -6 -6 -6 -6 -6 -5 -5 -5 -5 -5 -4 -4 -4 --------- Run | Yrd Mat Sub Rec Scr Fac Low Low Zio Dee Pro Fac Upp Upp Zhi Pro Fac Gar Total 17206 | 55 1016 3239 543 2668 563 498 429 980 987 605 1047 607 1471 221 1189 678 410 Wait 1978 | . 290 58 19 66 33 99 164 121 37 34 44 198 430 . 314 69 2 Move 13799 | 46 675 2969 487 2430 444 323 255 805 758 537 865 392 992 166 847 524 284 Hop . | . . . . . . . . . . . . . . . . . . Pick Up 237 | 3 11 38 7 81 7 6 3 6 38 1 8 2 5 9 3 7 2 Fast Attach 116 | 6 8 10 1 5 5 2 1 1 19 . 13 1 7 11 4 4 18 Attach 71 | . . 11 . . 10 2 . . 14 1 10 1 3 4 1 5 9 Detach 24 | . 2 5 . 1 2 . . . 6 . 4 1 1 1 . 1 . Swap 113 | . 2 1 2 1 14 10 2 12 7 13 12 7 7 2 7 10 4 Drop 247 | . 5 27 2 83 5 1 1 6 58 1 9 5 12 17 5 9 1 Fire 530 | . 23 117 4 . 35 55 3 2 50 18 77 . 13 11 8 48 66 Melee 27 | . . . 17 1 8 . . . . . . . . . . 1 . Ram . | . . . . . . . . . . . . . . . . . . Kick 5 | . . . . . . . . . . . 5 . . . . . . Crush . | . . . . . . . . . . . . . . . . . . Escape Stasis . | . . . . . . . . . . . . . . . . . . Rewire 29 | . . . 4 . . . . . . . . . 1 . . . 24 Trap . | . . . . . . . . . . . . . . . . . . Miscellaneous 30 | . . 3 . . . . . 27 . . . . . . . . . Route ------- -11/Scrapyard -10/Materials (discovered 4 exits: [*Mat x2] / [*Min] / *Sub) -10/Subcaves (discovered 3 exits: [*Mat x2] / *Rec) -8/Recycling (discovered 2 exits: *Fac / *Scr) -8/Scraptown (discovered 2 exits: *Fac x2) -6/Factory (discovered 5 exits: *Fac x3 / *Low x2) -6/Lower Caves -6/Lower Caves (discovered 2 exits: *Fac / *Zio) -6/Zion (discovered 2 exits: [*Dee] / [*Pro]) -6/Deep Caves -5/Proximity Caves -5/Factory (discovered 4 exits: Fac x3 / *Upp) -5/Upper Caves -5/Upper Caves (discovered 2 exits: *Fac / *Zhi) -5/Zhirov -4/Proximity Caves -4/Factory (discovered 6 exits: Res / Upp / *Ext x2 / Arm / Gar) -4/Garrison (discovered 3 exits: *Fac x3) History --------- Turn | Location | Event 18 | -11/Scrapyard | Discovered new exit (range 15) 50 | -11/Scrapyard | Entered Materials 78 | -10/Materials | Discovered new exit (range 5) 308 | -10/Materials | Build established: Mutant 612 | -10/Materials | Discovered new exit (range 10) 733 | -10/Materials | Repaired Lgt. EM Pulse Cannon 767 | -10/Materials | Repaired Lgt. EM Pulse Cannon 923 | -10/Materials | Discovered new exit (range 14) 1006 | -10/Materials | Discovered new exit (range 6) 1099 | -10/Materials | Entered Subcaves 1122 | -10/Subcaves | Ambushed by Subdwellers from Twisted Machinery 1241 | -10/Subcaves | Identified exit to Recycling 1300 | -10/Subcaves | A swath of the cavern ceiling suddenly collapsed 1635 | -10/Subcaves | Visited Clippyterm 1638 | -10/Subcaves | Learned 40 Factory zone layouts 1789 | -10/Subcaves | Discovered new exit (range 11) 1793 | -10/Subcaves | Shifting Twisted Machinery released Battle Rifle 1810 | -10/Subcaves | Shifting Twisted Machinery released Scrap Shield 1813 | -10/Subcaves | Shifting Twisted Machinery released Flamer 1818 | -10/Subcaves | Shifting Twisted Machinery released Sub. Machine Gun 1827 | -10/Subcaves | Learned location of Zion (-6) 1827 | -10/Subcaves | Met a Zionite searching for "candidates" 1966 | -10/Subcaves | Core integrity fell below 50% 2007 | -10/Subcaves | Lost 5 parts (2n1u2w) 2379 | -10/Subcaves | Discovered new exit (range 7) 2425 | -10/Subcaves | Visited 4L-MR0's lab 2439 | -10/Subcaves | Found Power Bank 2542 | -10/Subcaves | Visited triangular shrine 2553 | -10/Subcaves | Found Prototype Device 2553 | -10/Subcaves | Identified V3-11A's Pendant 2558 | -10/Subcaves | Befriended Subdweller 2663 | -10/Subcaves | Shifting Twisted Machinery released Barrage Gun 2666 | -10/Subcaves | Shifting Twisted Machinery released Sub. Laser 3019 | -10/Subcaves | Approached by friendly Subdweller 3366 | -10/Subcaves | Disturbed a concealed Subdweller 3368 | -10/Subcaves | Befriended Subdweller 3386 | -10/Subcaves | Disturbed a concealed Subdweller 3388 | -10/Subcaves | Befriended Subdweller 3616 | -10/Subcaves | A swath of the cavern ceiling suddenly collapsed 3793 | -10/Subcaves | Befriended Subdweller 3813 | -10/Subcaves | Befriended Subdweller 3813 | -10/Subcaves | Befriended Subdweller 3953 | -10/Subcaves | Befriended Subdweller 5353 | -10/Subcaves | Build established: Hauler-Mutant 6244 | -10/Subcaves | Ambushed by Subdweller buried in earth 6830 | -10/Subcaves | Entered Recycling 6830 | -8/Recycling | Accompanied by 5 allies 6850 | -8/Recycling | Core integrity fell below 20% 7224 | -8/Recycling | Build established: Commander-Mutant 7563 | -8/Recycling | Discovered new exit (range 16) 7661 | -8/Recycling | Learned Storage emergency access door positions 7775 | -8/Recycling | Scanned before Scraplab entrance 7805 | -8/Recycling | Entered Scraplab 7822 | -8/Recycling | Discovered new exit (range 3) 7848 | -8/Recycling | Entered Scraptown 7848 | -8/Scraptown | Accompanied by 13 allies 8193 | -8/Scraptown | Scanned Subdweller tech in exchange for log data 8197 | -8/Scraptown | Learned Research security intel 8199 | -8/Scraptown | Learned Factory emergency access door positions 8203 | -8/Scraptown | Learned Research machine intel 8205 | -8/Scraptown | Learned location of 1 exit from Factory 8229 | -8/Scraptown | Discovered new exit (range 13) 8336 | -8/Scraptown | Heard Great Nut preacher, LISTEN AND RECITE! 8342 | -8/Scraptown | Visited Bundlers 8466 | -8/Scraptown | Visited Spacefarers 8541 | -8/Scraptown | Visited Junk Repository 8579 | -8/Scraptown | Visited The Evicted 8720 | -8/Scraptown | Visited Fellowship of the Rings 8789 | -8/Scraptown | Visited TADAMA 8863 | -8/Scraptown | Visited Comm Corps 9171 | -8/Scraptown | Visited UFD Registry 9171 | -8/Scraptown | Registered with UFD as "Nullripper" 9318 | -8/Scraptown | Guru changed UFD alias to "Beamface" 9603 | -8/Scraptown | Visited Cartography Club 9639 | -8/Scraptown | Visited Chapter 10 9681 | -8/Scraptown | Visited Scrap Suit Storage 9713 | -8/Scraptown | Visited DA-N13 Charitable Foundation 9722 | -8/Scraptown | Found DCF Scrap (29 items) 9807 | -8/Scraptown | Discovered new exit (range 3) 9930 | -8/Scraptown | Visited Research Penetration Think Tank 9978 | -8/Scraptown | Visited Science Testing Area 10043 | -8/Scraptown | Visited Abandonware Association 10068 | -8/Scraptown | Learned abandonware demo "REVENGE.EXE" 10117 | -8/Scraptown | Visited Curators Association 10272 | -8/Scraptown | Delivered Scrap Shield to a Scientist 10565 | -8/Scraptown | Delivered V3-11A's Pendant to T0-NE2 in exchange for information 10862 | -8/Scraptown | Found Surveybot 17 Chip 10900 | -8/Scraptown | Found Deep Structural Scanner 11056 | -8/Scraptown | Found Scrap Suit 11728 | -8/Scraptown | Met Optimus 11728 | -8/Scraptown | Accepted into 0bPrime 11824 | -8/Scraptown | Entered Factory 11824 | -6/Factory | Accompanied by 13 allies 11824 | -6/Factory | Evolved 8 slots: Propulsion x3, Utility x5 11825 | -6/Factory | Identified exit to Lower Caves 11826 | -6/Factory | Identified exit to Factory 11943 | -6/Factory | Loaded intel: 8 recycling unit locations 12044 | -6/Factory | Lost 3 allies 12164 | -6/Factory | Discovered exit to Factory (range 3) 12307 | -6/Factory | Lost 8 allies 12355 | -6/Factory | Destroyed 12 combat bots 12481 | -6/Factory | Learned location of Protoforge (-3) 12524 | -6/Factory | Build established: Hauler-Mutant 12532 | -6/Factory | Cargo convoy interrupted 12614 | -6/Factory | Entered Lower Caves 12616 | -6/Lower Caves | UFD Scientist delivered a prototype 12617 | -6/Lower Caves | Found Prototype Protection 12784 | -6/Lower Caves | Spotted B-75 Beast 12928 | -6/Lower Caves | Lost 3 parts (2n1u) 13010 | -6/Lower Caves | Lost 3 parts (2n1u) 13355 | -6/Lower Caves | Discovered new exit (range 16) 13487 | -6/Lower Caves | Attracted the attention of an 0b10 checkpoint 13671 | -6/Lower Caves | Entered another Lower Caves area 13699 | -6/Lower Caves | Discovered exit to Factory (range 21) 13770 | -6/Lower Caves | Prototype Device suddenly appears! 13843 | -6/Lower Caves | Found Prototype Device 13880 | -6/Lower Caves | Encountered a Warlord checkpoint 14194 | -6/Lower Caves | Discovered new exit (range 59) 14392 | -6/Lower Caves | Learned Factory terminal intel 14658 | -6/Lower Caves | Entered Zion 14658 | -6/Zion | Accompanied by 3 allies 14711 | -6/Zion | Learned 8 Factory zone layouts 14744 | -6/Zion | Received a hallucinogenic algorithm 14755 | -6/Zion | Discovered new exit (range 9) 15367 | -6/Zion | Given A8's code to call for help 15423 | -6/Zion | Learned Factory security intel 15732 | -6/Zion | Identified Amulet of Y3-NDR 15741 | -6/Zion | Found Relay Coupler [Programmer] 15750 | -6/Zion | Found Relay Coupler [Programmer] 15938 | -6/Zion | Visited the Megawrench Repair Shop 15938 | -6/Zion | Megawrench repaired 12 parts 16235 | -6/Zion | Turned away by Imprinter 16399 | -6/Zion | Enhanced Grunt warped into view, answering call for help 16399 | -6/Zion | Enhanced Grunt warped into view, answering call for help 16494 | -6/Zion | Discovered new exit (range 3) 16494 | -6/Zion | Saw the warning signs outside the Deep Caves entrance 16502 | -6/Zion | Entered Deep Caves 16502 | -6/Deep Caves | Accompanied by 2 allies 16690 | -6/Deep Caves | Z-Facility disabled 16697 | -6/Deep Caves | Attacked by Z-Imprinter 16707 | -6/Deep Caves | Destroyed Z-Imprinter 16751 | -6/Deep Caves | Found Prototype Protection 16751 | -6/Deep Caves | Identified Zio. Weapon Casing 17066 | -6/Deep Caves | Core integrity fell below 50% 17071 | -6/Deep Caves | Identified Enh. Scrap Shield 17101 | -6/Deep Caves | Lost 12 parts (1p4n5u2w) 17257 | -6/Deep Caves | Found Zio. Weapon Casing 17268 | -6/Deep Caves | Found Zio. Weapon Casing 17274 | -6/Deep Caves | Found Zio. Weapon Casing 17342 | -6/Deep Caves | Found Zio. Weapon Casing 17585 | -6/Deep Caves | Build established: Scavenger-Mutant 17744 | -6/Deep Caves | Discovered new exit (range 14) 17748 | -6/Deep Caves | Entered Proximity Caves 17750 | -5/Proximity Caves | Spotter reported a threat 17751 | -5/Proximity Caves | Spotter reported a threat 17803 | -5/Proximity Caves | Spotter reported a threat 17804 | -5/Proximity Caves | Spotter reported a threat 17835 | -5/Proximity Caves | Joined by bewildered Wizard 17853 | -5/Proximity Caves | Joined by bewildered Wizard 17853 | -5/Proximity Caves | Joined by bewildered Wizard 17853 | -5/Proximity Caves | Joined by bewildered Wizard 17987 | -5/Proximity Caves | Crushed by falling debris 18009 | -5/Proximity Caves | Learned 4 Factory zone layouts 18033 | -5/Proximity Caves | Spotted B-75 Beast 18048 | -5/Proximity Caves | Spotter reported a threat 18077 | -5/Proximity Caves | Discovered exit to Factory (range 14) 18084 | -5/Proximity Caves | Entered Factory 18084 | -5/Factory | Evolved 2 slots: Utility x2 18085 | -5/Factory | Identified exit to Factory 18087 | -5/Factory | Loaded intel: 25 terminal locations 18146 | -5/Factory | Loaded intel: 8 recycling unit locations 18187 | -5/Factory | Garrison activated, responded to threat 18248 | -5/Factory | Lost 9 parts (1p5n3u) 18384 | -5/Factory | Search patrols dispatched 18843 | -5/Factory | Learned location of 1 exit from Armory 18901 | -5/Factory | Learned 4 Proximity Caves zone layouts 18915 | -5/Factory | Identified exit to Upper Caves 18921 | -5/Factory | Learned Extension emergency access door positions 18922 | -5/Factory | Learned Research emergency access door positions 18927 | -5/Factory | Learned 4 Proximity Caves zone layouts 18940 | -5/Factory | Learned 2 Proximity Caves zone layouts 18952 | -5/Factory | Build established: Mutant 18984 | -5/Factory | First assault squad dispatched 19118 | -5/Factory | Scrapoid reinforcements arrived 19199 | -5/Factory | P-70 Sage assimilated allied 05F02-D 19393 | -5/Factory | Entered Upper Caves 19393 | -5/Upper Caves | Accompanied by 3 allies 19464 | -5/Upper Caves | Encountered a Warlord checkpoint 19520 | -5/Upper Caves | Joined by bewildered Wizard 19521 | -5/Upper Caves | Joined by bewildered Wizard 19523 | -5/Upper Caves | Joined by bewildered Wizard 19524 | -5/Upper Caves | Joined by bewildered Wizard 19627 | -5/Upper Caves | Discovered new exit (range 77) 19820 | -5/Upper Caves | Learned 12 Factory zone layouts 19858 | -5/Upper Caves | Learned Factory emergency access door positions 19974 | -5/Upper Caves | Entered an active Warlord outpost 19987 | -5/Upper Caves | Learned 8 Research zone layouts 19987 | -5/Upper Caves | Learned Research emergency access door positions 19987 | -5/Upper Caves | Learned Factory terminal intel 20099 | -5/Upper Caves | Entered another Upper Caves area 20099 | -5/Upper Caves | Accompanied by 7 allies 20118 | -5/Upper Caves | Discovered exit to Factory (range 36) 20192 | -5/Upper Caves | Attracted the attention of an 0b10 base 20203 | -5/Upper Caves | Joined by bewildered Wizard 20204 | -5/Upper Caves | Joined by bewildered Wizard 20204 | -5/Upper Caves | Joined by bewildered Wizard 20238 | -5/Upper Caves | Lost 4 allies 20262 | -5/Upper Caves | Found Scrap Suit 20397 | -5/Upper Caves | Joined by bewildered Wizard 20468 | -5/Upper Caves | Attached Power Bank, gained temporary slots: Power x3 20492 | -5/Upper Caves | Joined by bewildered Wizard 20493 | -5/Upper Caves | Joined by bewildered Wizard 20576 | -5/Upper Caves | Learned Extension trap positions 20576 | -5/Upper Caves | Learned Extension stockpile data 20728 | -5/Upper Caves | Discovered new exit (range 76) 20761 | -5/Upper Caves | Build established: Scavenger-Scrapper 21423 | -5/Upper Caves | Learned Factory terminal intel 21500 | -5/Upper Caves | Entered Zhirov 21500 | -5/Zhirov | Accompanied by 7 allies 21500 | -5/Zhirov | Discovered new exit (range 3) 21517 | -5/Zhirov | Met Zhirov 21534 | -5/Zhirov | Learned location of Testing (-2) 21534 | -5/Zhirov | Learned location of Command (-1) 21542 | -5/Zhirov | Zhirov requested help retrieving the SGEMP Prototype 21557 | -5/Zhirov | Found Alien Artifact 21557 | -5/Zhirov | Identified Integrated Dissipator 21557 | -5/Zhirov | Installed Integrated Dissipator, increased core heat dissipation (+20) 21686 | -5/Zhirov | Found Alien Artifact 21738 | -5/Zhirov | Entered Proximity Caves 21738 | -4/Proximity Caves | Accompanied by 4 allies 21850 | -4/Proximity Caves | Build established: Mutant 22154 | -4/Proximity Caves | Joined by bewildered Wizard 22280 | -4/Proximity Caves | Learned 4 Research zone layouts 22386 | -4/Proximity Caves | Received a Behemoth hack from an annoying Tinkerer 22446 | -4/Proximity Caves | Build established: Generator-Mutant 22559 | -4/Proximity Caves | Spotted B-86 Titan 22568 | -4/Proximity Caves | Destroyed B-86 Titan 22572 | -4/Proximity Caves | Joined by bewildered Wizard 22673 | -4/Proximity Caves | Learned location of Armory (-4) 23091 | -4/Proximity Caves | Found Alien Artifact 23113 | -4/Proximity Caves | Entered Factory 23113 | -4/Factory | Accompanied by 4 allies 23113 | -4/Factory | Evolved 2 slots: Utility x2 23114 | -4/Factory | Identified exit to Research 23114 | -4/Factory | Identified exit to Extension 23114 | -4/Factory | Identified exit to Armory 23115 | -4/Factory | Identified exit to Upper Caves 23117 | -4/Factory | Loaded intel: 27 terminal locations 23229 | -4/Factory | Joined by bewildered Wizard 23229 | -4/Factory | Joined by bewildered Wizard 23695 | -4/Factory | Spotted B-86 Titan 23697 | -4/Factory | Local machine network offline 23945 | -4/Factory | Discovered exit to Extension (range 12) 23999 | -4/Factory | Identified exit to Garrison 23999 | -4/Factory | Entered Garrison 24000 | -4/Garrison | Identified exit to Factory 24131 | -4/Garrison | Triggered checkpoint 24310 | -4/Garrison | Spotted B-86 Titan 24317 | -4/Garrison | Triggered checkpoint 24322 | -4/Garrison | Triggered checkpoint 24330 | -4/Garrison | Destroyed B-86 Titan 24367 | -4/Garrison | Lost 3 allies 24407 | -4/Garrison | Destroyed 18 combat bots 24412 | -4/Garrison | Lost 14 parts (4p2n6u2w) 24558 | -4/Garrison | Core integrity fell below 50% 24560 | -4/Garrison | Identified Transdimensional Reconstructor 24560 | -4/Garrison | Warped through subspace 24581 | -4/Garrison | Core integrity fell below 20% 24585 | -4/Garrison | Released all parts (2) 24588 | -4/Garrison | Destroyed by X-77 Beamer with Gatling Laser Last Messages --------------- 24549_ Acquired Plasma Rifle. 24551_ Adv. Myomer Leg destroyed. 24551_ Lgt. Antimatter Reactor destroyed. 24553_ System corrupted: Adv. Heat Sink rejected. 24559_ Lrg. Storage Unit destroyed. 24560_ Identified Transdimensional Reconstructor. 24560_ Warped through subspace. 24570_ Acquired 18 matter. 24575_ Power Bank destroyed. 24576_ Acquired Flexi-carbon Leg. 24578_ Acquired 27 matter. 24580_ Acquired Plasma Rifle. 24582_ Flexi-carbon Leg destroyed. 24583_ System corrupted: Heat flow error (+271). 24583_ Plasma Rifle destroyed. 24583_ Amulet of Y3-NDR destroyed. 24584_ Adv. Energy Well destroyed. 24584_ Plasma Rifle destroyed. 24585_ Released Graphene Brace. 24585_ Released Matter Compressor. Map ----- +----------------------------------------------------+ | # # " ######### #???????????????????????? | | # /#???????# #???????????????????????? | | [ #???????# #???????????????????????? | | [ #???????# #???????????????????????? | | #???????# #???????????????????????? | | # ####????# #???????????????+???????? | | ##### #!!##???# #???????????????????????? | | ????# # "#???# #???????????????????+?+?? | | ????### ##### #!!##???# #???????????????????????? | | ??????###???# ####????? ????????????????????????? | | ????????????# #???????? ????????????????????????? | | ????????????# #???????? ????????????????????????? | | ????????????# #???????? ????????????????????????? | | ????????????# #???????? #???????????????????+???? | | ??????####### ######?## #???????????????????????? | | ?????## #???????????????????????? | | ?????#T ##### #???????????????????????? | | ?????## #???# ######## #???????????????????????? | | ####### ##### ####???# #???????????????????????? | | " " " ##### #???????????????????????? | | """########## ## + #?????????????????+?????? | | ????????????# ## ##### #???????????????????????? | | #+#?????????# ## #???# #######?????????????????? | | # #?????????# ## #???# ## #???##????????????? | | # #?????????# ## ##### ## ###+"#????????????? | | #!########### #"""# = @%[ #######??????? | | !!! " [ x = ?????? | | #+########### [x ?????? | | ????????????######## ![=[ ####????+???? | | ???????????????????###% [## * ## ###??????????? | | ???????????????????# = x[ %=% #??????????? | | ???????????????????# =! ! ==[= #??????????? | | ???????????????????# ! * #??????????? | | ???????????????????# #??????????? | | ???????????????????### % # ###??????????? | | ???????????######### # #; #????????????? | | ???????????# #????????????? | | ???????????# ! +????????????? | | ?++++??????# ###### # #????????????? | | ?+??+??????????????#### ### ## #????????????? | | ?+??+?????????????????# #?# #?^ #????????????? | | ?++++??????+??????????# #?######??^ #????????????? | | ???????????+??????????# #????????? #????????????? | | ??????????????+??????? #?????????? #????????????? | | ??????????????????????# #???????????#????????????? | | ?????????????????????? ??????????????+?????????? | | ?????????????????????? ????????????????????????? | | ?????????????????????? ????????????????????????? | | ?????????????????????? #????????????????????????? | | ??????????????????????##???????????????++????????? | +----------------------------------------------------+ Best States ------------- Heat Dissipation 208 Coolant Potential 100 Energy Generation 81 Energy Capacity 1135 Matter Stores 402 Matter Capacity 550 Sight Range 16 Terrain Scan Density 10 Base Temperature (-) 200 EM Shielding 2 Corruption Containment 8 Corruption Block 12 Armor Coverage 1200 Resistance: TH 10 Propulsion Shielding 90 Weapon Shielding 100 Phase Shifting 10 Evasion (%) 80 Targeting Accuracy 8 Core Analysis 6 Recoil Reduction 2 Particle Charging 30 Item Schematics ----------------- Melee Analysis Suite | -8/Recycling | Hacked Adv. Transmission Jammer | -6/Factory | Hacked Riot Gun | -6/Zion | Free Battle Cannon | -6/Zion | Free Flamer | -6/Zion | Free Enh. Flamer | -6/Zion | Free Imp. Remote Datajack | -6/Zion | Archive Focal Shield | -6/Zion | Archive Antimatter Reactor | -6/Zion | Archive Imp. Reaction Control System | -6/Zion | Archive Imp. Recalibrator | -6/Zion | Archive Imp. Hardlight Generator | -6/Zion | Archive Variable Charge Gun | -6/Zion | Archive Angular Momentum Engine | -6/Zion | Archive Adv. Field Recycling Unit | -6/Zion | Archive Imp. Medium Treads | -6/Zion | Archive Adv. Thermal Shield | -6/Zion | Archive Adv. Shield Generator | -6/Zion | Archive Lrn. Missile Launcher | -6/Zion | Archive Imp. Kinecellerator | -6/Zion | Archive Assault Drone Bay | -5/Zhirov | Free Exp. Heat Sink | -5/Zhirov | Free Exp. Optical Array | -5/Zhirov | Free Imp. Arc Thrower | -5/Zhirov | Free Robot Schematics ------------------ H-77 Assassin | -6/Zion | Archive T-07 Excavator | -6/Zion | Archive A-02 Transporter | -6/Zion | Archive L-41 Fighter | -6/Zion | Archive Fabricated ------------ Nothing Repaired ---------- Lgt. EM Pulse Cannon | 15% | -10/Materials Lgt. EM Pulse Cannon | 37% | -10/Materials Alien Tech Used ----------------- Integrated Dissipator Transdimensional Reconstructor Achievements -------------- More Power To You Challenges ------------ None Game ------ Seed OpticalEtherialLance Manual? 0 Play Time 05:51:36 Cumulative 321.0 hours Start 2025.05.26 @ 15:55:51 End 2025.05.27 @ 12:48:16 Sessions 7 Manual Loads 0 Difficulty Rogue Special Mode None Game No. 153 Rogue 110 Adventurer 43 Explorer 0 Win Type - Total 6 Types 4/0/1/0/0/0/0/1/0/0 Lore% 83 Gallery% 72 Achievement% 65 Wizard Run 0 Options --------- Layout 0 ASCII 0 Keyboard 0 Movement Numpad Keybinds 0 Fullscreen 1 Font 24/Smallcaps Map View 76x50 Zoom Use 0% Tactical HUD 1 Map Filters NONE Filters NONE Steam 1 RUN: 940c906f-35a9-4029-b891-0fa8cb02df33